{"text_format":"3","workbook":"xlsx","n_sheets":3,"sheets":["Planung","Dateneingabe","Namen suchen"],"not_rendered":{"defined_names":5},"read":"whole","date_system":"1900"}

{"sheet":"Planung","index":0,"n_rows":23,"n_cols":9,"rows_kept":23,"merged":[[1,1,2,3]]}
[]
[null,"TAGESPLAN",{"$nulls":4},"Für die Woche von:","Plan anzeigen für:"]
[{"$nulls":5},{"$f":"WEEKDAY(KW,1)","v":3},"2012-07-03","Moritz"]
[null,null,{"$f":"$F$3=COLUMN(A$1)","v":false},{"$f":"$F$3=COLUMN(B$1)","v":false},true,false,false,false,false]
[null,null,{"$f":"COLUMN(A$1)-MATCH(TRUE,$C$4:$I$4,0)+KW+1","v":"2012-07-02"},"2012-07-03","2012-07-04","2012-07-05","2012-07-06","2012-07-07","2012-07-08"]
[null,"UHRZEIT","MONTAG","DIENSTAG","MITTWOCH","DONNERSTAG","FREITAG","SAMSTAG","SONNTAG"]
[null,"06:00:00",{"$f":"IFERROR(INDEX(tblDaten[],MATCH(C$5+$B7&NameAnzeigen,tblDaten[DATUM UND UHRZEIT]&tblDaten[WER],0),3),\"\")","v":""},{"$f":"IFERROR(INDEX(tblDaten[],MATCH(D$5+$B7&NameAnzeigen,tblDaten[DATUM UND UHRZEIT]&tblDaten[WER],0),3),\"\")","v":""},{"$f":"IFERROR(INDEX(tblDaten[],MATCH(E$5+$B7&NameAnzeigen,tblDaten[DATUM UND UHRZEIT]&tblDaten[WER],0),3),\"\")","v":""},{"$f":"IFERROR(INDEX(tblDaten[],MATCH(F$5+$B7&NameAnzeigen,tblDaten[DATUM UND UHRZEIT]&tblDaten[WER],0),3),\"\")","v":""},{"$f":"IFERROR(INDEX(tblDaten[],MATCH(G$5+$B7&NameAnzeigen,tblDaten[DATUM UND UHRZEIT]&tblDaten[WER],0),3),\"\")","v":""},{"$f":"IFERROR(INDEX(tblDaten[],MATCH(H$5+$B7&NameAnzeigen,tblDaten[DATUM UND UHRZEIT]&tblDaten[WER],0),3),\"\")","v":""},{"$f":"IFERROR(INDEX(tblDaten[],MATCH(I$5+$B7&NameAnzeigen,tblDaten[DATUM UND UHRZEIT]&tblDaten[WER],0),3),\"\")","v":""}]
[null,"07:00:00",{"$f":"IFERROR(INDEX(tblDaten[],MATCH(C$5+$B8&NameAnzeigen,tblDaten[DATUM UND UHRZEIT]&tblDaten[WER],0),3),\"\")","v":""},{"$f":"IFERROR(INDEX(tblDaten[],MATCH(D$5+$B8&NameAnzeigen,tblDaten[DATUM UND UHRZEIT]&tblDaten[WER],0),3),\"\")","v":""},{"$f":"IFERROR(INDEX(tblDaten[],MATCH(E$5+$B8&NameAnzeigen,tblDaten[DATUM UND UHRZEIT]&tblDaten[WER],0),3),\"\")","v":""},{"$f":"IFERROR(INDEX(tblDaten[],MATCH(F$5+$B8&NameAnzeigen,tblDaten[DATUM UND UHRZEIT]&tblDaten[WER],0),3),\"\")","v":""},{"$f":"IFERROR(INDEX(tblDaten[],MATCH(G$5+$B8&NameAnzeigen,tblDaten[DATUM UND UHRZEIT]&tblDaten[WER],0),3),\"\")","v":""},{"$f":"IFERROR(INDEX(tblDaten[],MATCH(H$5+$B8&NameAnzeigen,tblDaten[DATUM UND UHRZEIT]&tblDaten[WER],0),3),\"\")","v":""},{"$f":"IFERROR(INDEX(tblDaten[],MATCH(I$5+$B8&NameAnzeigen,tblDaten[DATUM UND UHRZEIT]&tblDaten[WER],0),3),\"\")","v":""}]
[null,"08:00:00",{"$f":"IFERROR(INDEX(tblDaten[],MATCH(C$5+$B9&NameAnzeigen,tblDaten[DATUM UND UHRZEIT]&tblDaten[WER],0),3),\"\")","v":""},{"$f":"IFERROR(INDEX(tblDaten[],MATCH(D$5+$B9&NameAnzeigen,tblDaten[DATUM UND UHRZEIT]&tblDaten[WER],0),3),\"\")","v":""},{"$f":"IFERROR(INDEX(tblDaten[],MATCH(E$5+$B9&NameAnzeigen,tblDaten[DATUM UND UHRZEIT]&tblDaten[WER],0),3),\"\")","v":""},{"$f":"IFERROR(INDEX(tblDaten[],MATCH(F$5+$B9&NameAnzeigen,tblDaten[DATUM UND UHRZEIT]&tblDaten[WER],0),3),\"\")","v":""},{"$f":"IFERROR(INDEX(tblDaten[],MATCH(G$5+$B9&NameAnzeigen,tblDaten[DATUM UND UHRZEIT]&tblDaten[WER],0),3),\"\")","v":""},{"$f":"IFERROR(INDEX(tblDaten[],MATCH(H$5+$B9&NameAnzeigen,tblDaten[DATUM UND UHRZEIT]&tblDaten[WER],0),3),\"\")","v":""},{"$f":"IFERROR(INDEX(tblDaten[],MATCH(I$5+$B9&NameAnzeigen,tblDaten[DATUM UND UHRZEIT]&tblDaten[WER],0),3),\"\")","v":""}]
[null,"09:00:00",{"$f":"IFERROR(INDEX(tblDaten[],MATCH(C$5+$B10&NameAnzeigen,tblDaten[DATUM UND UHRZEIT]&tblDaten[WER],0),3),\"\")","v":""},{"$f":"IFERROR(INDEX(tblDaten[],MATCH(D$5+$B10&NameAnzeigen,tblDaten[DATUM UND UHRZEIT]&tblDaten[WER],0),3),\"\")","v":""},{"$f":"IFERROR(INDEX(tblDaten[],MATCH(E$5+$B10&NameAnzeigen,tblDaten[DATUM UND UHRZEIT]&tblDaten[WER],0),3),\"\")","v":""},{"$f":"IFERROR(INDEX(tblDaten[],MATCH(F$5+$B10&NameAnzeigen,tblDaten[DATUM UND UHRZEIT]&tblDaten[WER],0),3),\"\")","v":""},{"$f":"IFERROR(INDEX(tblDaten[],MATCH(G$5+$B10&NameAnzeigen,tblDaten[DATUM UND UHRZEIT]&tblDaten[WER],0),3),\"\")","v":""},{"$f":"IFERROR(INDEX(tblDaten[],MATCH(H$5+$B10&NameAnzeigen,tblDaten[DATUM UND UHRZEIT]&tblDaten[WER],0),3),\"\")","v":""},{"$f":"IFERROR(INDEX(tblDaten[],MATCH(I$5+$B10&NameAnzeigen,tblDaten[DATUM UND UHRZEIT]&tblDaten[WER],0),3),\"\")","v":""}]
[null,"10:00:00",{"$f":"IFERROR(INDEX(tblDaten[],MATCH(C$5+$B11&NameAnzeigen,tblDaten[DATUM UND UHRZEIT]&tblDaten[WER],0),3),\"\")","v":""},{"$f":"IFERROR(INDEX(tblDaten[],MATCH(D$5+$B11&NameAnzeigen,tblDaten[DATUM UND UHRZEIT]&tblDaten[WER],0),3),\"\")","v":""},{"$f":"IFERROR(INDEX(tblDaten[],MATCH(E$5+$B11&NameAnzeigen,tblDaten[DATUM UND UHRZEIT]&tblDaten[WER],0),3),\"\")","v":"Parade im Stadtzentrum"},{"$f":"IFERROR(INDEX(tblDaten[],MATCH(F$5+$B11&NameAnzeigen,tblDaten[DATUM UND UHRZEIT]&tblDaten[WER],0),3),\"\")","v":""},{"$f":"IFERROR(INDEX(tblDaten[],MATCH(G$5+$B11&NameAnzeigen,tblDaten[DATUM UND UHRZEIT]&tblDaten[WER],0),3),\"\")","v":""},{"$f":"IFERROR(INDEX(tblDaten[],MATCH(H$5+$B11&NameAnzeigen,tblDaten[DATUM UND UHRZEIT]&tblDaten[WER],0),3),\"\")","v":""},{"$f":"IFERROR(INDEX(tblDaten[],MATCH(I$5+$B11&NameAnzeigen,tblDaten[DATUM UND UHRZEIT]&tblDaten[WER],0),3),\"\")","v":""}]
[null,"11:00:00",{"$f":"IFERROR(INDEX(tblDaten[],MATCH(C$5+$B12&NameAnzeigen,tblDaten[DATUM UND UHRZEIT]&tblDaten[WER],0),3),\"\")","v":""},{"$f":"IFERROR(INDEX(tblDaten[],MATCH(D$5+$B12&NameAnzeigen,tblDaten[DATUM UND UHRZEIT]&tblDaten[WER],0),3),\"\")","v":""},{"$f":"IFERROR(INDEX(tblDaten[],MATCH(E$5+$B12&NameAnzeigen,tblDaten[DATUM UND UHRZEIT]&tblDaten[WER],0),3),\"\")","v":""},{"$f":"IFERROR(INDEX(tblDaten[],MATCH(F$5+$B12&NameAnzeigen,tblDaten[DATUM UND UHRZEIT]&tblDaten[WER],0),3),\"\")","v":""},{"$f":"IFERROR(INDEX(tblDaten[],MATCH(G$5+$B12&NameAnzeigen,tblDaten[DATUM UND UHRZEIT]&tblDaten[WER],0),3),\"\")","v":"Grillen mit der Familie"},{"$f":"IFERROR(INDEX(tblDaten[],MATCH(H$5+$B12&NameAnzeigen,tblDaten[DATUM UND UHRZEIT]&tblDaten[WER],0),3),\"\")","v":""},{"$f":"IFERROR(INDEX(tblDaten[],MATCH(I$5+$B12&NameAnzeigen,tblDaten[DATUM UND UHRZEIT]&tblDaten[WER],0),3),\"\")","v":""}]
[null,"12:00:00",{"$f":"IFERROR(INDEX(tblDaten[],MATCH(C$5+$B13&NameAnzeigen,tblDaten[DATUM UND UHRZEIT]&tblDaten[WER],0),3),\"\")","v":""},{"$f":"IFERROR(INDEX(tblDaten[],MATCH(D$5+$B13&NameAnzeigen,tblDaten[DATUM UND UHRZEIT]&tblDaten[WER],0),3),\"\")","v":""},{"$f":"IFERROR(INDEX(tblDaten[],MATCH(E$5+$B13&NameAnzeigen,tblDaten[DATUM UND UHRZEIT]&tblDaten[WER],0),3),\"\")","v":""},{"$f":"IFERROR(INDEX(tblDaten[],MATCH(F$5+$B13&NameAnzeigen,tblDaten[DATUM UND UHRZEIT]&tblDaten[WER],0),3),\"\")","v":""},{"$f":"IFERROR(INDEX(tblDaten[],MATCH(G$5+$B13&NameAnzeigen,tblDaten[DATUM UND UHRZEIT]&tblDaten[WER],0),3),\"\")","v":""},{"$f":"IFERROR(INDEX(tblDaten[],MATCH(H$5+$B13&NameAnzeigen,tblDaten[DATUM UND UHRZEIT]&tblDaten[WER],0),3),\"\")","v":""},{"$f":"IFERROR(INDEX(tblDaten[],MATCH(I$5+$B13&NameAnzeigen,tblDaten[DATUM UND UHRZEIT]&tblDaten[WER],0),3),\"\")","v":""}]
[null,"13:00:00",{"$f":"IFERROR(INDEX(tblDaten[],MATCH(C$5+$B14&NameAnzeigen,tblDaten[DATUM UND UHRZEIT]&tblDaten[WER],0),3),\"\")","v":""},{"$f":"IFERROR(INDEX(tblDaten[],MATCH(D$5+$B14&NameAnzeigen,tblDaten[DATUM UND UHRZEIT]&tblDaten[WER],0),3),\"\")","v":""},{"$f":"IFERROR(INDEX(tblDaten[],MATCH(E$5+$B14&NameAnzeigen,tblDaten[DATUM UND UHRZEIT]&tblDaten[WER],0),3),\"\")","v":""},{"$f":"IFERROR(INDEX(tblDaten[],MATCH(F$5+$B14&NameAnzeigen,tblDaten[DATUM UND UHRZEIT]&tblDaten[WER],0),3),\"\")","v":""},{"$f":"IFERROR(INDEX(tblDaten[],MATCH(G$5+$B14&NameAnzeigen,tblDaten[DATUM UND UHRZEIT]&tblDaten[WER],0),3),\"\")","v":""},{"$f":"IFERROR(INDEX(tblDaten[],MATCH(H$5+$B14&NameAnzeigen,tblDaten[DATUM UND UHRZEIT]&tblDaten[WER],0),3),\"\")","v":""},{"$f":"IFERROR(INDEX(tblDaten[],MATCH(I$5+$B14&NameAnzeigen,tblDaten[DATUM UND UHRZEIT]&tblDaten[WER],0),3),\"\")","v":""}]
[null,"14:00:00",{"$f":"IFERROR(INDEX(tblDaten[],MATCH(C$5+$B15&NameAnzeigen,tblDaten[DATUM UND UHRZEIT]&tblDaten[WER],0),3),\"\")","v":""},{"$f":"IFERROR(INDEX(tblDaten[],MATCH(D$5+$B15&NameAnzeigen,tblDaten[DATUM UND UHRZEIT]&tblDaten[WER],0),3),\"\")","v":""},{"$f":"IFERROR(INDEX(tblDaten[],MATCH(E$5+$B15&NameAnzeigen,tblDaten[DATUM UND UHRZEIT]&tblDaten[WER],0),3),\"\")","v":""},{"$f":"IFERROR(INDEX(tblDaten[],MATCH(F$5+$B15&NameAnzeigen,tblDaten[DATUM UND UHRZEIT]&tblDaten[WER],0),3),\"\")","v":""},{"$f":"IFERROR(INDEX(tblDaten[],MATCH(G$5+$B15&NameAnzeigen,tblDaten[DATUM UND UHRZEIT]&tblDaten[WER],0),3),\"\")","v":""},{"$f":"IFERROR(INDEX(tblDaten[],MATCH(H$5+$B15&NameAnzeigen,tblDaten[DATUM UND UHRZEIT]&tblDaten[WER],0),3),\"\")","v":""},{"$f":"IFERROR(INDEX(tblDaten[],MATCH(I$5+$B15&NameAnzeigen,tblDaten[DATUM UND UHRZEIT]&tblDaten[WER],0),3),\"\")","v":""}]
[null,"15:00:00",{"$f":"IFERROR(INDEX(tblDaten[],MATCH(C$5+$B16&NameAnzeigen,tblDaten[DATUM UND UHRZEIT]&tblDaten[WER],0),3),\"\")","v":""},{"$f":"IFERROR(INDEX(tblDaten[],MATCH(D$5+$B16&NameAnzeigen,tblDaten[DATUM UND UHRZEIT]&tblDaten[WER],0),3),\"\")","v":""},{"$f":"IFERROR(INDEX(tblDaten[],MATCH(E$5+$B16&NameAnzeigen,tblDaten[DATUM UND UHRZEIT]&tblDaten[WER],0),3),\"\")","v":""},{"$f":"IFERROR(INDEX(tblDaten[],MATCH(F$5+$B16&NameAnzeigen,tblDaten[DATUM UND UHRZEIT]&tblDaten[WER],0),3),\"\")","v":""},{"$f":"IFERROR(INDEX(tblDaten[],MATCH(G$5+$B16&NameAnzeigen,tblDaten[DATUM UND UHRZEIT]&tblDaten[WER],0),3),\"\")","v":""},{"$f":"IFERROR(INDEX(tblDaten[],MATCH(H$5+$B16&NameAnzeigen,tblDaten[DATUM UND UHRZEIT]&tblDaten[WER],0),3),\"\")","v":""},{"$f":"IFERROR(INDEX(tblDaten[],MATCH(I$5+$B16&NameAnzeigen,tblDaten[DATUM UND UHRZEIT]&tblDaten[WER],0),3),\"\")","v":""}]
[null,"16:00:00",{"$f":"IFERROR(INDEX(tblDaten[],MATCH(C$5+$B17&NameAnzeigen,tblDaten[DATUM UND UHRZEIT]&tblDaten[WER],0),3),\"\")","v":""},{"$f":"IFERROR(INDEX(tblDaten[],MATCH(D$5+$B17&NameAnzeigen,tblDaten[DATUM UND UHRZEIT]&tblDaten[WER],0),3),\"\")","v":"Urlaub in der Hütte"},{"$f":"IFERROR(INDEX(tblDaten[],MATCH(E$5+$B17&NameAnzeigen,tblDaten[DATUM UND UHRZEIT]&tblDaten[WER],0),3),\"\")","v":""},{"$f":"IFERROR(INDEX(tblDaten[],MATCH(F$5+$B17&NameAnzeigen,tblDaten[DATUM UND UHRZEIT]&tblDaten[WER],0),3),\"\")","v":""},{"$f":"IFERROR(INDEX(tblDaten[],MATCH(G$5+$B17&NameAnzeigen,tblDaten[DATUM UND UHRZEIT]&tblDaten[WER],0),3),\"\")","v":""},{"$f":"IFERROR(INDEX(tblDaten[],MATCH(H$5+$B17&NameAnzeigen,tblDaten[DATUM UND UHRZEIT]&tblDaten[WER],0),3),\"\")","v":""},{"$f":"IFERROR(INDEX(tblDaten[],MATCH(I$5+$B17&NameAnzeigen,tblDaten[DATUM UND UHRZEIT]&tblDaten[WER],0),3),\"\")","v":""}]
[null,"17:00:00",{"$f":"IFERROR(INDEX(tblDaten[],MATCH(C$5+$B18&NameAnzeigen,tblDaten[DATUM UND UHRZEIT]&tblDaten[WER],0),3),\"\")","v":""},{"$f":"IFERROR(INDEX(tblDaten[],MATCH(D$5+$B18&NameAnzeigen,tblDaten[DATUM UND UHRZEIT]&tblDaten[WER],0),3),\"\")","v":""},{"$f":"IFERROR(INDEX(tblDaten[],MATCH(E$5+$B18&NameAnzeigen,tblDaten[DATUM UND UHRZEIT]&tblDaten[WER],0),3),\"\")","v":""},{"$f":"IFERROR(INDEX(tblDaten[],MATCH(F$5+$B18&NameAnzeigen,tblDaten[DATUM UND UHRZEIT]&tblDaten[WER],0),3),\"\")","v":""},{"$f":"IFERROR(INDEX(tblDaten[],MATCH(G$5+$B18&NameAnzeigen,tblDaten[DATUM UND UHRZEIT]&tblDaten[WER],0),3),\"\")","v":""},{"$f":"IFERROR(INDEX(tblDaten[],MATCH(H$5+$B18&NameAnzeigen,tblDaten[DATUM UND UHRZEIT]&tblDaten[WER],0),3),\"\")","v":""},{"$f":"IFERROR(INDEX(tblDaten[],MATCH(I$5+$B18&NameAnzeigen,tblDaten[DATUM UND UHRZEIT]&tblDaten[WER],0),3),\"\")","v":"Rückkunft"}]
[null,"18:00:00",{"$f":"IFERROR(INDEX(tblDaten[],MATCH(C$5+$B19&NameAnzeigen,tblDaten[DATUM UND UHRZEIT]&tblDaten[WER],0),3),\"\")","v":"Medizin nehmen"},{"$f":"IFERROR(INDEX(tblDaten[],MATCH(D$5+$B19&NameAnzeigen,tblDaten[DATUM UND UHRZEIT]&tblDaten[WER],0),3),\"\")","v":""},{"$f":"IFERROR(INDEX(tblDaten[],MATCH(E$5+$B19&NameAnzeigen,tblDaten[DATUM UND UHRZEIT]&tblDaten[WER],0),3),\"\")","v":""},{"$f":"IFERROR(INDEX(tblDaten[],MATCH(F$5+$B19&NameAnzeigen,tblDaten[DATUM UND UHRZEIT]&tblDaten[WER],0),3),\"\")","v":""},{"$f":"IFERROR(INDEX(tblDaten[],MATCH(G$5+$B19&NameAnzeigen,tblDaten[DATUM UND UHRZEIT]&tblDaten[WER],0),3),\"\")","v":""},{"$f":"IFERROR(INDEX(tblDaten[],MATCH(H$5+$B19&NameAnzeigen,tblDaten[DATUM UND UHRZEIT]&tblDaten[WER],0),3),\"\")","v":""},{"$f":"IFERROR(INDEX(tblDaten[],MATCH(I$5+$B19&NameAnzeigen,tblDaten[DATUM UND UHRZEIT]&tblDaten[WER],0),3),\"\")","v":""}]
[null,"19:00:00",{"$f":"IFERROR(INDEX(tblDaten[],MATCH(C$5+$B20&NameAnzeigen,tblDaten[DATUM UND UHRZEIT]&tblDaten[WER],0),3),\"\")","v":""},{"$f":"IFERROR(INDEX(tblDaten[],MATCH(D$5+$B20&NameAnzeigen,tblDaten[DATUM UND UHRZEIT]&tblDaten[WER],0),3),\"\")","v":""},{"$f":"IFERROR(INDEX(tblDaten[],MATCH(E$5+$B20&NameAnzeigen,tblDaten[DATUM UND UHRZEIT]&tblDaten[WER],0),3),\"\")","v":""},{"$f":"IFERROR(INDEX(tblDaten[],MATCH(F$5+$B20&NameAnzeigen,tblDaten[DATUM UND UHRZEIT]&tblDaten[WER],0),3),\"\")","v":""},{"$f":"IFERROR(INDEX(tblDaten[],MATCH(G$5+$B20&NameAnzeigen,tblDaten[DATUM UND UHRZEIT]&tblDaten[WER],0),3),\"\")","v":""},{"$f":"IFERROR(INDEX(tblDaten[],MATCH(H$5+$B20&NameAnzeigen,tblDaten[DATUM UND UHRZEIT]&tblDaten[WER],0),3),\"\")","v":""},{"$f":"IFERROR(INDEX(tblDaten[],MATCH(I$5+$B20&NameAnzeigen,tblDaten[DATUM UND UHRZEIT]&tblDaten[WER],0),3),\"\")","v":""}]
[null,"20:00:00",{"$f":"IFERROR(INDEX(tblDaten[],MATCH(C$5+$B21&NameAnzeigen,tblDaten[DATUM UND UHRZEIT]&tblDaten[WER],0),3),\"\")","v":"Kino mit der Familie"},{"$f":"IFERROR(INDEX(tblDaten[],MATCH(D$5+$B21&NameAnzeigen,tblDaten[DATUM UND UHRZEIT]&tblDaten[WER],0),3),\"\")","v":""},{"$f":"IFERROR(INDEX(tblDaten[],MATCH(E$5+$B21&NameAnzeigen,tblDaten[DATUM UND UHRZEIT]&tblDaten[WER],0),3),\"\")","v":""},{"$f":"IFERROR(INDEX(tblDaten[],MATCH(F$5+$B21&NameAnzeigen,tblDaten[DATUM UND UHRZEIT]&tblDaten[WER],0),3),\"\")","v":"Feuerwerk"},{"$f":"IFERROR(INDEX(tblDaten[],MATCH(G$5+$B21&NameAnzeigen,tblDaten[DATUM UND UHRZEIT]&tblDaten[WER],0),3),\"\")","v":""},{"$f":"IFERROR(INDEX(tblDaten[],MATCH(H$5+$B21&NameAnzeigen,tblDaten[DATUM UND UHRZEIT]&tblDaten[WER],0),3),\"\")","v":""},{"$f":"IFERROR(INDEX(tblDaten[],MATCH(I$5+$B21&NameAnzeigen,tblDaten[DATUM UND UHRZEIT]&tblDaten[WER],0),3),\"\")","v":""}]
[null,"21:00:00",{"$f":"IFERROR(INDEX(tblDaten[],MATCH(C$5+$B22&NameAnzeigen,tblDaten[DATUM UND UHRZEIT]&tblDaten[WER],0),3),\"\")","v":""},{"$f":"IFERROR(INDEX(tblDaten[],MATCH(D$5+$B22&NameAnzeigen,tblDaten[DATUM UND UHRZEIT]&tblDaten[WER],0),3),\"\")","v":""},{"$f":"IFERROR(INDEX(tblDaten[],MATCH(E$5+$B22&NameAnzeigen,tblDaten[DATUM UND UHRZEIT]&tblDaten[WER],0),3),\"\")","v":""},{"$f":"IFERROR(INDEX(tblDaten[],MATCH(F$5+$B22&NameAnzeigen,tblDaten[DATUM UND UHRZEIT]&tblDaten[WER],0),3),\"\")","v":""},{"$f":"IFERROR(INDEX(tblDaten[],MATCH(G$5+$B22&NameAnzeigen,tblDaten[DATUM UND UHRZEIT]&tblDaten[WER],0),3),\"\")","v":""},{"$f":"IFERROR(INDEX(tblDaten[],MATCH(H$5+$B22&NameAnzeigen,tblDaten[DATUM UND UHRZEIT]&tblDaten[WER],0),3),\"\")","v":""},{"$f":"IFERROR(INDEX(tblDaten[],MATCH(I$5+$B22&NameAnzeigen,tblDaten[DATUM UND UHRZEIT]&tblDaten[WER],0),3),\"\")","v":""}]
[null,"22:00:00",{"$f":"IFERROR(INDEX(tblDaten[],MATCH(C$5+$B23&NameAnzeigen,tblDaten[DATUM UND UHRZEIT]&tblDaten[WER],0),3),\"\")","v":""},{"$f":"IFERROR(INDEX(tblDaten[],MATCH(D$5+$B23&NameAnzeigen,tblDaten[DATUM UND UHRZEIT]&tblDaten[WER],0),3),\"\")","v":""},{"$f":"IFERROR(INDEX(tblDaten[],MATCH(E$5+$B23&NameAnzeigen,tblDaten[DATUM UND UHRZEIT]&tblDaten[WER],0),3),\"\")","v":""},{"$f":"IFERROR(INDEX(tblDaten[],MATCH(F$5+$B23&NameAnzeigen,tblDaten[DATUM UND UHRZEIT]&tblDaten[WER],0),3),\"\")","v":""},{"$f":"IFERROR(INDEX(tblDaten[],MATCH(G$5+$B23&NameAnzeigen,tblDaten[DATUM UND UHRZEIT]&tblDaten[WER],0),3),\"\")","v":""},{"$f":"IFERROR(INDEX(tblDaten[],MATCH(H$5+$B23&NameAnzeigen,tblDaten[DATUM UND UHRZEIT]&tblDaten[WER],0),3),\"\")","v":""},{"$f":"IFERROR(INDEX(tblDaten[],MATCH(I$5+$B23&NameAnzeigen,tblDaten[DATUM UND UHRZEIT]&tblDaten[WER],0),3),\"\")","v":""}]

{"sheet":"Dateneingabe","index":1,"n_rows":14,"n_cols":4,"rows_kept":14}
[null,"Dateneingabe"]
[]
[null,"DATUM UND UHRZEIT","WER","AUFGABE"]
[null,"2012-07-02T08:00:00","Anna","Arzttermin"]
[null,"2012-07-02T18:00:00","Moritz","Medizin nehmen"]
[null,"2012-07-02T18:30:00","Moritz","Abendessen mit Patrizia"]
[null,"2012-07-02T20:00:00","Moritz","Kino mit der Familie"]
[null,"2012-07-03T16:00:00","Moritz","Urlaub in der Hütte"]
[null,"2012-07-04T10:00:00","Moritz","Parade im Stadtzentrum"]
[null,"2012-07-05T20:00:00","Moritz","Feuerwerk"]
[null,"2012-07-06T11:00:00","Moritz","Grillen mit der Familie"]
[null,"2012-07-07","Moritz","Straßenfest"]
[null,"2012-07-08T17:00:00","Moritz","Rückkunft"]
[null,"2012-07-02T10:00:00","Anna","Klavierstunden"]

{"sheet":"Namen suchen","index":2,"n_rows":132,"n_cols":2,"rows_kept":132,"hidden":true,"merged":[[0,0,0,1]]}
["Mit diesem Arbeitsblatt werden die Dropdownlisten mit den Namen in Zelle H3 des Arbeitblatts gefüllt. Änderungen im Arbeitsblatt können zu Fehlern führen."]
["EINDEUTIGER NAME","ZEILENNUMMER"]
[{"$f":"IFERROR(INDEX(WerFeld,MATCH(0,COUNTIF($A$2:A2,WerFeld),0)),\"\")","v":"Anna"},{"$f":"IF(A3=\"\",\"\",ROW())","v":3}]
[{"$f":"IFERROR(INDEX(WerFeld,MATCH(0,COUNTIF($A$2:A3,WerFeld),0)),\"\")","v":"Moritz"},{"$f":"IF(A4=\"\",\"\",ROW())","v":4}]
[{"$f":"IFERROR(INDEX(WerFeld,MATCH(0,COUNTIF($A$2:A4,WerFeld),0)),\"\")","v":""},""]
[{"$f":"IFERROR(INDEX(WerFeld,MATCH(0,COUNTIF($A$2:A5,WerFeld),0)),\"\")","v":""},""]
[{"$f":"IFERROR(INDEX(WerFeld,MATCH(0,COUNTIF($A$2:A6,WerFeld),0)),\"\")","v":""},""]
[{"$f":"IFERROR(INDEX(WerFeld,MATCH(0,COUNTIF($A$2:A7,WerFeld),0)),\"\")","v":""},""]
[{"$f":"IFERROR(INDEX(WerFeld,MATCH(0,COUNTIF($A$2:A8,WerFeld),0)),\"\")","v":""},""]
[{"$f":"IFERROR(INDEX(WerFeld,MATCH(0,COUNTIF($A$2:A9,WerFeld),0)),\"\")","v":""},""]
[{"$f":"IFERROR(INDEX(WerFeld,MATCH(0,COUNTIF($A$2:A10,WerFeld),0)),\"\")","v":""},""]
[{"$f":"IFERROR(INDEX(WerFeld,MATCH(0,COUNTIF($A$2:A11,WerFeld),0)),\"\")","v":""},""]
[{"$f":"IFERROR(INDEX(WerFeld,MATCH(0,COUNTIF($A$2:A12,WerFeld),0)),\"\")","v":""},""]
[{"$f":"IFERROR(INDEX(WerFeld,MATCH(0,COUNTIF($A$2:A13,WerFeld),0)),\"\")","v":""},""]
[{"$f":"IFERROR(INDEX(WerFeld,MATCH(0,COUNTIF($A$2:A14,WerFeld),0)),\"\")","v":""},""]
[{"$f":"IFERROR(INDEX(WerFeld,MATCH(0,COUNTIF($A$2:A15,WerFeld),0)),\"\")","v":""},""]
[{"$f":"IFERROR(INDEX(WerFeld,MATCH(0,COUNTIF($A$2:A16,WerFeld),0)),\"\")","v":""},""]
[{"$f":"IFERROR(INDEX(WerFeld,MATCH(0,COUNTIF($A$2:A17,WerFeld),0)),\"\")","v":""},""]
[{"$f":"IFERROR(INDEX(WerFeld,MATCH(0,COUNTIF($A$2:A18,WerFeld),0)),\"\")","v":""},""]
[{"$f":"IFERROR(INDEX(WerFeld,MATCH(0,COUNTIF($A$2:A19,WerFeld),0)),\"\")","v":""},""]
[{"$f":"IFERROR(INDEX(WerFeld,MATCH(0,COUNTIF($A$2:A20,WerFeld),0)),\"\")","v":""},""]
[{"$f":"IFERROR(INDEX(WerFeld,MATCH(0,COUNTIF($A$2:A21,WerFeld),0)),\"\")","v":""},""]
[{"$f":"IFERROR(INDEX(WerFeld,MATCH(0,COUNTIF($A$2:A22,WerFeld),0)),\"\")","v":""},""]
[{"$f":"IFERROR(INDEX(WerFeld,MATCH(0,COUNTIF($A$2:A23,WerFeld),0)),\"\")","v":""},""]
[{"$f":"IFERROR(INDEX(WerFeld,MATCH(0,COUNTIF($A$2:A24,WerFeld),0)),\"\")","v":""},""]
[{"$f":"IFERROR(INDEX(WerFeld,MATCH(0,COUNTIF($A$2:A25,WerFeld),0)),\"\")","v":""},""]
[{"$f":"IFERROR(INDEX(WerFeld,MATCH(0,COUNTIF($A$2:A26,WerFeld),0)),\"\")","v":""},""]
[{"$f":"IFERROR(INDEX(WerFeld,MATCH(0,COUNTIF($A$2:A27,WerFeld),0)),\"\")","v":""},""]
[{"$f":"IFERROR(INDEX(WerFeld,MATCH(0,COUNTIF($A$2:A28,WerFeld),0)),\"\")","v":""},""]
[{"$f":"IFERROR(INDEX(WerFeld,MATCH(0,COUNTIF($A$2:A29,WerFeld),0)),\"\")","v":""},""]
[{"$f":"IFERROR(INDEX(WerFeld,MATCH(0,COUNTIF($A$2:A30,WerFeld),0)),\"\")","v":""},""]
[{"$f":"IFERROR(INDEX(WerFeld,MATCH(0,COUNTIF($A$2:A31,WerFeld),0)),\"\")","v":""},""]
[{"$f":"IFERROR(INDEX(WerFeld,MATCH(0,COUNTIF($A$2:A32,WerFeld),0)),\"\")","v":""},""]
[{"$f":"IFERROR(INDEX(WerFeld,MATCH(0,COUNTIF($A$2:A33,WerFeld),0)),\"\")","v":""},""]
[{"$f":"IFERROR(INDEX(WerFeld,MATCH(0,COUNTIF($A$2:A34,WerFeld),0)),\"\")","v":""},""]
[{"$f":"IFERROR(INDEX(WerFeld,MATCH(0,COUNTIF($A$2:A35,WerFeld),0)),\"\")","v":""},""]
[{"$f":"IFERROR(INDEX(WerFeld,MATCH(0,COUNTIF($A$2:A36,WerFeld),0)),\"\")","v":""},""]
[{"$f":"IFERROR(INDEX(WerFeld,MATCH(0,COUNTIF($A$2:A37,WerFeld),0)),\"\")","v":""},""]
[{"$f":"IFERROR(INDEX(WerFeld,MATCH(0,COUNTIF($A$2:A38,WerFeld),0)),\"\")","v":""},""]
[{"$f":"IFERROR(INDEX(WerFeld,MATCH(0,COUNTIF($A$2:A39,WerFeld),0)),\"\")","v":""},""]
[{"$f":"IFERROR(INDEX(WerFeld,MATCH(0,COUNTIF($A$2:A40,WerFeld),0)),\"\")","v":""},""]
[{"$f":"IFERROR(INDEX(WerFeld,MATCH(0,COUNTIF($A$2:A41,WerFeld),0)),\"\")","v":""},""]
[{"$f":"IFERROR(INDEX(WerFeld,MATCH(0,COUNTIF($A$2:A42,WerFeld),0)),\"\")","v":""},""]
[{"$f":"IFERROR(INDEX(WerFeld,MATCH(0,COUNTIF($A$2:A43,WerFeld),0)),\"\")","v":""},""]
[{"$f":"IFERROR(INDEX(WerFeld,MATCH(0,COUNTIF($A$2:A44,WerFeld),0)),\"\")","v":""},""]
[{"$f":"IFERROR(INDEX(WerFeld,MATCH(0,COUNTIF($A$2:A45,WerFeld),0)),\"\")","v":""},""]
[{"$f":"IFERROR(INDEX(WerFeld,MATCH(0,COUNTIF($A$2:A46,WerFeld),0)),\"\")","v":""},""]
[{"$f":"IFERROR(INDEX(WerFeld,MATCH(0,COUNTIF($A$2:A47,WerFeld),0)),\"\")","v":""},""]
[{"$f":"IFERROR(INDEX(WerFeld,MATCH(0,COUNTIF($A$2:A48,WerFeld),0)),\"\")","v":""},""]
[{"$f":"IFERROR(INDEX(WerFeld,MATCH(0,COUNTIF($A$2:A49,WerFeld),0)),\"\")","v":""},""]
[{"$f":"IFERROR(INDEX(WerFeld,MATCH(0,COUNTIF($A$2:A50,WerFeld),0)),\"\")","v":""},""]
[{"$f":"IFERROR(INDEX(WerFeld,MATCH(0,COUNTIF($A$2:A51,WerFeld),0)),\"\")","v":""},""]
[{"$f":"IFERROR(INDEX(WerFeld,MATCH(0,COUNTIF($A$2:A52,WerFeld),0)),\"\")","v":""},""]
[{"$f":"IFERROR(INDEX(WerFeld,MATCH(0,COUNTIF($A$2:A53,WerFeld),0)),\"\")","v":""},""]
[{"$f":"IFERROR(INDEX(WerFeld,MATCH(0,COUNTIF($A$2:A54,WerFeld),0)),\"\")","v":""},""]
[{"$f":"IFERROR(INDEX(WerFeld,MATCH(0,COUNTIF($A$2:A55,WerFeld),0)),\"\")","v":""},""]
[{"$f":"IFERROR(INDEX(WerFeld,MATCH(0,COUNTIF($A$2:A56,WerFeld),0)),\"\")","v":""},""]
[{"$f":"IFERROR(INDEX(WerFeld,MATCH(0,COUNTIF($A$2:A57,WerFeld),0)),\"\")","v":""},""]
[{"$f":"IFERROR(INDEX(WerFeld,MATCH(0,COUNTIF($A$2:A58,WerFeld),0)),\"\")","v":""},""]
[{"$f":"IFERROR(INDEX(WerFeld,MATCH(0,COUNTIF($A$2:A59,WerFeld),0)),\"\")","v":""},""]
[{"$f":"IFERROR(INDEX(WerFeld,MATCH(0,COUNTIF($A$2:A60,WerFeld),0)),\"\")","v":""},""]
[{"$f":"IFERROR(INDEX(WerFeld,MATCH(0,COUNTIF($A$2:A61,WerFeld),0)),\"\")","v":""},""]
[{"$f":"IFERROR(INDEX(WerFeld,MATCH(0,COUNTIF($A$2:A62,WerFeld),0)),\"\")","v":""},""]
[{"$f":"IFERROR(INDEX(WerFeld,MATCH(0,COUNTIF($A$2:A63,WerFeld),0)),\"\")","v":""},""]
[{"$f":"IFERROR(INDEX(WerFeld,MATCH(0,COUNTIF($A$2:A64,WerFeld),0)),\"\")","v":""},""]
[{"$f":"IFERROR(INDEX(WerFeld,MATCH(0,COUNTIF($A$2:A65,WerFeld),0)),\"\")","v":""},""]
[{"$f":"IFERROR(INDEX(WerFeld,MATCH(0,COUNTIF($A$2:A66,WerFeld),0)),\"\")","v":""},""]
[{"$f":"IFERROR(INDEX(WerFeld,MATCH(0,COUNTIF($A$2:A67,WerFeld),0)),\"\")","v":""},{"$f":"IF(A68=\"\",\"\",ROW())","v":""}]
[{"$f":"IFERROR(INDEX(WerFeld,MATCH(0,COUNTIF($A$2:A68,WerFeld),0)),\"\")","v":""},""]
[{"$f":"IFERROR(INDEX(WerFeld,MATCH(0,COUNTIF($A$2:A69,WerFeld),0)),\"\")","v":""},""]
[{"$f":"IFERROR(INDEX(WerFeld,MATCH(0,COUNTIF($A$2:A70,WerFeld),0)),\"\")","v":""},""]
[{"$f":"IFERROR(INDEX(WerFeld,MATCH(0,COUNTIF($A$2:A71,WerFeld),0)),\"\")","v":""},""]
[{"$f":"IFERROR(INDEX(WerFeld,MATCH(0,COUNTIF($A$2:A72,WerFeld),0)),\"\")","v":""},""]
[{"$f":"IFERROR(INDEX(WerFeld,MATCH(0,COUNTIF($A$2:A73,WerFeld),0)),\"\")","v":""},""]
[{"$f":"IFERROR(INDEX(WerFeld,MATCH(0,COUNTIF($A$2:A74,WerFeld),0)),\"\")","v":""},""]
[{"$f":"IFERROR(INDEX(WerFeld,MATCH(0,COUNTIF($A$2:A75,WerFeld),0)),\"\")","v":""},""]
[{"$f":"IFERROR(INDEX(WerFeld,MATCH(0,COUNTIF($A$2:A76,WerFeld),0)),\"\")","v":""},""]
[{"$f":"IFERROR(INDEX(WerFeld,MATCH(0,COUNTIF($A$2:A77,WerFeld),0)),\"\")","v":""},""]
[{"$f":"IFERROR(INDEX(WerFeld,MATCH(0,COUNTIF($A$2:A78,WerFeld),0)),\"\")","v":""},""]
[{"$f":"IFERROR(INDEX(WerFeld,MATCH(0,COUNTIF($A$2:A79,WerFeld),0)),\"\")","v":""},""]
[{"$f":"IFERROR(INDEX(WerFeld,MATCH(0,COUNTIF($A$2:A80,WerFeld),0)),\"\")","v":""},""]
[{"$f":"IFERROR(INDEX(WerFeld,MATCH(0,COUNTIF($A$2:A81,WerFeld),0)),\"\")","v":""},""]
[{"$f":"IFERROR(INDEX(WerFeld,MATCH(0,COUNTIF($A$2:A82,WerFeld),0)),\"\")","v":""},""]
[{"$f":"IFERROR(INDEX(WerFeld,MATCH(0,COUNTIF($A$2:A83,WerFeld),0)),\"\")","v":""},""]
[{"$f":"IFERROR(INDEX(WerFeld,MATCH(0,COUNTIF($A$2:A84,WerFeld),0)),\"\")","v":""},""]
[{"$f":"IFERROR(INDEX(WerFeld,MATCH(0,COUNTIF($A$2:A85,WerFeld),0)),\"\")","v":""},""]
[{"$f":"IFERROR(INDEX(WerFeld,MATCH(0,COUNTIF($A$2:A86,WerFeld),0)),\"\")","v":""},""]
[{"$f":"IFERROR(INDEX(WerFeld,MATCH(0,COUNTIF($A$2:A87,WerFeld),0)),\"\")","v":""},""]
[{"$f":"IFERROR(INDEX(WerFeld,MATCH(0,COUNTIF($A$2:A88,WerFeld),0)),\"\")","v":""},""]
[{"$f":"IFERROR(INDEX(WerFeld,MATCH(0,COUNTIF($A$2:A89,WerFeld),0)),\"\")","v":""},""]
[{"$f":"IFERROR(INDEX(WerFeld,MATCH(0,COUNTIF($A$2:A90,WerFeld),0)),\"\")","v":""},""]
[{"$f":"IFERROR(INDEX(WerFeld,MATCH(0,COUNTIF($A$2:A91,WerFeld),0)),\"\")","v":""},""]
[{"$f":"IFERROR(INDEX(WerFeld,MATCH(0,COUNTIF($A$2:A92,WerFeld),0)),\"\")","v":""},""]
[{"$f":"IFERROR(INDEX(WerFeld,MATCH(0,COUNTIF($A$2:A93,WerFeld),0)),\"\")","v":""},""]
[{"$f":"IFERROR(INDEX(WerFeld,MATCH(0,COUNTIF($A$2:A94,WerFeld),0)),\"\")","v":""},""]
[{"$f":"IFERROR(INDEX(WerFeld,MATCH(0,COUNTIF($A$2:A95,WerFeld),0)),\"\")","v":""},""]
[{"$f":"IFERROR(INDEX(WerFeld,MATCH(0,COUNTIF($A$2:A96,WerFeld),0)),\"\")","v":""},""]
[{"$f":"IFERROR(INDEX(WerFeld,MATCH(0,COUNTIF($A$2:A97,WerFeld),0)),\"\")","v":""},""]
[{"$f":"IFERROR(INDEX(WerFeld,MATCH(0,COUNTIF($A$2:A98,WerFeld),0)),\"\")","v":""},""]
[{"$f":"IFERROR(INDEX(WerFeld,MATCH(0,COUNTIF($A$2:A99,WerFeld),0)),\"\")","v":""},""]
[{"$f":"IFERROR(INDEX(WerFeld,MATCH(0,COUNTIF($A$2:A100,WerFeld),0)),\"\")","v":""},""]
[{"$f":"IFERROR(INDEX(WerFeld,MATCH(0,COUNTIF($A$2:A101,WerFeld),0)),\"\")","v":""},""]
[{"$f":"IFERROR(INDEX(WerFeld,MATCH(0,COUNTIF($A$2:A102,WerFeld),0)),\"\")","v":""},""]
[{"$f":"IFERROR(INDEX(WerFeld,MATCH(0,COUNTIF($A$2:A103,WerFeld),0)),\"\")","v":""},""]
[{"$f":"IFERROR(INDEX(WerFeld,MATCH(0,COUNTIF($A$2:A104,WerFeld),0)),\"\")","v":""},""]
[{"$f":"IFERROR(INDEX(WerFeld,MATCH(0,COUNTIF($A$2:A105,WerFeld),0)),\"\")","v":""},""]
[{"$f":"IFERROR(INDEX(WerFeld,MATCH(0,COUNTIF($A$2:A106,WerFeld),0)),\"\")","v":""},""]
[{"$f":"IFERROR(INDEX(WerFeld,MATCH(0,COUNTIF($A$2:A107,WerFeld),0)),\"\")","v":""},""]
[{"$f":"IFERROR(INDEX(WerFeld,MATCH(0,COUNTIF($A$2:A108,WerFeld),0)),\"\")","v":""},""]
[{"$f":"IFERROR(INDEX(WerFeld,MATCH(0,COUNTIF($A$2:A109,WerFeld),0)),\"\")","v":""},""]
[{"$f":"IFERROR(INDEX(WerFeld,MATCH(0,COUNTIF($A$2:A110,WerFeld),0)),\"\")","v":""},""]
[{"$f":"IFERROR(INDEX(WerFeld,MATCH(0,COUNTIF($A$2:A111,WerFeld),0)),\"\")","v":""},""]
[{"$f":"IFERROR(INDEX(WerFeld,MATCH(0,COUNTIF($A$2:A112,WerFeld),0)),\"\")","v":""},""]
[{"$f":"IFERROR(INDEX(WerFeld,MATCH(0,COUNTIF($A$2:A113,WerFeld),0)),\"\")","v":""},""]
[{"$f":"IFERROR(INDEX(WerFeld,MATCH(0,COUNTIF($A$2:A114,WerFeld),0)),\"\")","v":""},""]
[{"$f":"IFERROR(INDEX(WerFeld,MATCH(0,COUNTIF($A$2:A115,WerFeld),0)),\"\")","v":""},""]
[{"$f":"IFERROR(INDEX(WerFeld,MATCH(0,COUNTIF($A$2:A116,WerFeld),0)),\"\")","v":""},""]
[{"$f":"IFERROR(INDEX(WerFeld,MATCH(0,COUNTIF($A$2:A117,WerFeld),0)),\"\")","v":""},""]
[{"$f":"IFERROR(INDEX(WerFeld,MATCH(0,COUNTIF($A$2:A118,WerFeld),0)),\"\")","v":""},""]
[{"$f":"IFERROR(INDEX(WerFeld,MATCH(0,COUNTIF($A$2:A119,WerFeld),0)),\"\")","v":""},""]
[{"$f":"IFERROR(INDEX(WerFeld,MATCH(0,COUNTIF($A$2:A120,WerFeld),0)),\"\")","v":""},""]
[{"$f":"IFERROR(INDEX(WerFeld,MATCH(0,COUNTIF($A$2:A121,WerFeld),0)),\"\")","v":""},""]
[{"$f":"IFERROR(INDEX(WerFeld,MATCH(0,COUNTIF($A$2:A122,WerFeld),0)),\"\")","v":""},""]
[{"$f":"IFERROR(INDEX(WerFeld,MATCH(0,COUNTIF($A$2:A123,WerFeld),0)),\"\")","v":""},""]
[{"$f":"IFERROR(INDEX(WerFeld,MATCH(0,COUNTIF($A$2:A124,WerFeld),0)),\"\")","v":""},""]
[{"$f":"IFERROR(INDEX(WerFeld,MATCH(0,COUNTIF($A$2:A125,WerFeld),0)),\"\")","v":""},""]
[{"$f":"IFERROR(INDEX(WerFeld,MATCH(0,COUNTIF($A$2:A126,WerFeld),0)),\"\")","v":""},""]
[{"$f":"IFERROR(INDEX(WerFeld,MATCH(0,COUNTIF($A$2:A127,WerFeld),0)),\"\")","v":""},""]
[{"$f":"IFERROR(INDEX(WerFeld,MATCH(0,COUNTIF($A$2:A128,WerFeld),0)),\"\")","v":""},""]
[{"$f":"IFERROR(INDEX(WerFeld,MATCH(0,COUNTIF($A$2:A129,WerFeld),0)),\"\")","v":""},""]
[{"$f":"IFERROR(INDEX(WerFeld,MATCH(0,COUNTIF($A$2:A130,WerFeld),0)),\"\")","v":""},""]
[{"$f":"IFERROR(INDEX(WerFeld,MATCH(0,COUNTIF($A$2:A131,WerFeld),0)),\"\")","v":""},{"$f":"IF(A132=\"\",\"\",ROW())","v":""}]